Departmental Area,Entity,Payment Date,Expense Type,Expense Area,Supplier Name,Payment Reference,Invoice Distribution Amount,Description,Suplier Type,Expenditure Type
UK Statistics Authority,Office for National Statistics,01/06/2020,Postage,Respondent Relations,DHL Parcel Ltd,182752,"38,684.93",Courier Services,Large,Programme Expenditure
UK Statistics Authority,Office for National Statistics,01/06/2020,Postage,Survey Processing Centre,DHL Parcel Ltd,182752,"2,623.84",Courier Services,Large,Programme Expenditure
UK Statistics Authority,Office for National Statistics,01/06/2020,Exp - Short-Term Contract & Agency Staff - Full Cost,Stakeholder Engagement And Comms,La International,182756,"2,982.61",Information Management Services,SME,Programme Expenditure
UK Statistics Authority,Office for National Statistics,01/06/2020,Exp - Purchase Of Goods/Services - Contractors,Testing,La International,182756,"3,524.22",Information Management Services,SME,Programme Expenditure
UK Statistics Authority,Office for National Statistics,01/06/2020,Exp - Purchase Of Goods/Services - Contractors,Testing,La International,182756,"3,364.02",Information Management Services,SME,Programme Expenditure
UK Statistics Authority,Office for National Statistics,01/06/2020,Exp - Purchase Of Goods/Services - Contractors,Programme Delivery,La International,182756,"4,040.28",Information Management Services,SME,Programme Expenditure
UK Statistics Authority,Office for National Statistics,01/06/2020,Exp - Purchase Of Goods/Services - Contractors,Business Architecture Transformation And Statistical Strategy,La International,182756,"2,563.08",Information Management Services,SME,Programme Expenditure
UK Statistics Authority,Office for National Statistics,01/06/2020,Exp - Short-Term Contract & Agency Staff - Full Cost,Migration Statistics,La International,182756,"4,084.49",Information Management Services,SME,Programme Expenditure
UK Statistics Authority,Office for National Statistics,01/06/2020,Exp - Purchase Of Goods/Services - Contractors,IT Applications,La International,182756,"8,522.23",Information Management Services,SME,Programme Expenditure
UK Statistics Authority,Office for National Statistics,01/06/2020,"ICT Outsourcing, Maintenance And Support",IT Operations,Computacenter (Uk) Limited,182758,"23,033.50",Software Licenses,Large,Programme Expenditure
UK Statistics Authority,Office for National Statistics,01/06/2020,End User Software And Hardware,IT Operations,Computacenter (Uk) Limited,182758,"3,108.00",Software Licenses,Large,Programme Expenditure
UK Statistics Authority,Office for National Statistics,01/06/2020,End User Software And Hardware,IT Operations,CCS MEDIA LTD,182760,"26,801.28",Computers and Peripherals ,Large,Programme Expenditure
UK Statistics Authority,Office for National Statistics,01/06/2020,Exp - Purchase Of Goods/Services - Contractors,Portfolio Delivery,Malikshaw Interim & Executive,182766,"12,846.48",Information Management Services,SME,Programme Expenditure
UK Statistics Authority,Office for National Statistics,01/06/2020,Exp - Purchase Of Goods/Services - Contractors,Digital Delivery,Malikshaw Interim & Executive,182766,"12,240.00",Information Management Services,SME,Programme Expenditure
UK Statistics Authority,Office for National Statistics,01/06/2020,Exp - Purchase Of Goods/Services - Contractors,Tech Delivery Data As A Platform,Talent International,182779,"12,938.40",Information Management Services,SME,Programme Expenditure
UK Statistics Authority,Office for National Statistics,01/06/2020,Exp - Purchase Of Goods/Services - Contractors,Tech Delivery Next Gen IT And Infrastructure,Talent International,182779,"8,217.94",Information Management Services,SME,Programme Expenditure
UK Statistics Authority,Office for National Statistics,01/06/2020,Exp - Purchase Of Goods/Services - Contractors,Tech Delivery Next Gen IT And Infrastructure,Talent International,182779,"1,217.47",Information Management Services,SME,Programme Expenditure
UK Statistics Authority,Office for National Statistics,01/06/2020,Exp - Purchase Of Goods/Services - Contractors,Digital Delivery,Talent International,182779,"10,886.40",Information Management Services,SME,Programme Expenditure
UK Statistics Authority,Office for National Statistics,02/06/2020,End User Software And Hardware,IT Operations,Phoenix Software Ltd,182854,"469,542.72",Finance Analytics,SME,Programme Expenditure
UK Statistics Authority,Office for National Statistics,02/06/2020,Exp - Purchase Of Goods/Services - Contractors,Testing,La International,182855,"19,197.91",Information Management Services,SME,Programme Expenditure
UK Statistics Authority,Office for National Statistics,02/06/2020,Exp - Purchase Of Goods/Services - Contractors,Testing,La International,182855,"5,927.10",Information Management Services,SME,Programme Expenditure
UK Statistics Authority,Office for National Statistics,02/06/2020,Exp - Purchase Of Goods/Services - Contractors,Security Advisory,La International,182855,"10,764.94",Information Management Services,SME,Programme Expenditure
UK Statistics Authority,Office for National Statistics,02/06/2020,Exp - Purchase Of Goods/Services - Contractors,Data Architecture,La International,182855,"3,524.22",Information Management Services,SME,Programme Expenditure
UK Statistics Authority,Office for National Statistics,02/06/2020,Exp - Purchase Of Goods/Services - Contractors,Data Architecture,La International,182855,"3,588.30",Information Management Services,SME,Programme Expenditure
UK Statistics Authority,Office for National Statistics,02/06/2020,Exp - Purchase Of Goods/Services - Contractors,Tech Delivery SRS,La International,182855,"3,588.30",Information Management Services,SME,Programme Expenditure
UK Statistics Authority,Office for National Statistics,02/06/2020,Exp - Purchase Of Goods/Services - Contractors,Tech Delivery Legacy Sp,La International,182855,"3,229.48",Information Management Services,SME,Programme Expenditure
UK Statistics Authority,Office for National Statistics,02/06/2020,Exp - Purchase Of Goods/Services - Contractors,IT Applications,La International,182855,"5,779.98",Information Management Services,SME,Programme Expenditure
UK Statistics Authority,Office for National Statistics,02/06/2020,Exp - Purchase Of Goods/Services - Contractors,Digital Delivery,La International,182855,"10,047.24",Information Management Services,SME,Programme Expenditure
UK Statistics Authority,Office for National Statistics,02/06/2020,Exp - Purchase Of Goods/Services - Contractors,Digital Delivery,La International,182855,"33,371.20",Information Management Services,SME,Programme Expenditure
UK Statistics Authority,Office for National Statistics,02/06/2020,Exp - Purchase Of Goods/Services - IT Contractual Services,DST Reapportioning,Methods Business & Digital Technology Ltd,182858,"61,509.00",Information Management Services,Large,Programme Expenditure
UK Statistics Authority,Office for National Statistics,03/06/2020,Exp - Purchase Of Goods/Services - IT Contractual Services,Strategy And Architecture,Medley Business Solutions Ltd,182875,"27,561.60",Information Management Services,Large,Programme Expenditure
UK Statistics Authority,Office for National Statistics,03/06/2020,Rent Payable,Property Titchfield,Eaton Aerospace Limited,182879,"28,188.60",Corporate Services,Large,Programme Expenditure
UK Statistics Authority,Office for National Statistics,03/06/2020,Other Goods And Services,Social Survey Transformation Newport,APS Group,182880,"30,225.23",Mailing Services,Large,Programme Expenditure
UK Statistics Authority,Office for National Statistics,04/06/2020,Exp - Purchase Of Goods/Services - Incentive Payments,Survey Management,Park Retail Ltd,182980,"55,030.00",Survey Response Incentive Vouchers,Large,Programme Expenditure
UK Statistics Authority,Office for National Statistics,04/06/2020,Exp - Purchase Of Goods/Services - Incentive Payments,Survey Management,Park Retail Ltd,182980,"13,966.99",Survey Response Incentive Vouchers,Large,Programme Expenditure
UK Statistics Authority,Office for National Statistics,04/06/2020,Surveys,Labour Market,University of Durham,182982,"164,578.80",Statistical Services,Large,Programme Expenditure
UK Statistics Authority,Office for National Statistics,04/06/2020,"ICT Outsourcing, Maintenance And Support",Finance,Cgi It UK Limited (Formerly Logica UK Limited),182985,"25,874.24",Payroll Services,Large,Programme Expenditure
UK Statistics Authority,Office for National Statistics,04/06/2020,Exp - Purchase Of Goods And Services Consultants,Consultancy Management,Deloitte,182987,"42,600.00",Consultancy,Large,Programme Expenditure
UK Statistics Authority,Office for National Statistics,04/06/2020,Marketing & Media,Social Surveys Division,APS Group,182988,"60,363.45",Mailing Services,Large,Programme Expenditure
UK Statistics Authority,Office for National Statistics,04/06/2020,Surveys,Prices Division,Kantar UK Ltd,182996,"12,735.17",Statistical Services,Large,Programme Expenditure
UK Statistics Authority,Office for National Statistics,04/06/2020,Surveys,Prices Division,Kantar UK Ltd,182996,"1,505.83",Statistical Services,Large,Programme Expenditure
UK Statistics Authority,Office for National Statistics,04/06/2020,Surveys,Prices Division,Kantar UK Ltd,182996,"12,670.00",Statistical Services,Large,Programme Expenditure
UK Statistics Authority,Office for National Statistics,05/06/2020,Exp - Purchase Of Goods/Services - Incentive Payments,Interviewer Support,P & Mm Ltd,183000,"42,856.36",Survey Response Incentive Vouchers,Large,Programme Expenditure
UK Statistics Authority,Office for National Statistics,05/06/2020,Exp - Purchase Of Goods/Services - Other Facilities Costs,Ask Business Services,BaxterStorey,183007,"67,611.13",On Site Facilities,Large,Programme Expenditure
UK Statistics Authority,Office for National Statistics,08/06/2020,Exp - Purchase Of Goods/Services - Incentive Payments,Interviewer Support,P & Mm Ltd,183146,"55,893.40",Survey Response Incentive Vouchers,Large,Programme Expenditure
UK Statistics Authority,Office for National Statistics,08/06/2020,Exp - Purchase Of Goods/Services - IT Contractual Services,DST Reapportioning,Empiric Solutions Limited,183149,"28,860.00",Information Management Services,Large,Programme Expenditure
UK Statistics Authority,Office for National Statistics,08/06/2020,Surveys,Labour Market,University of Durham,183151,"164,578.80",Statistical Services,Large,Programme Expenditure
UK Statistics Authority,Office for National Statistics,08/06/2020,Postage,Respondent Relations,DHL Parcel Ltd,183153,"40,514.64",Courier Services,Large,Programme Expenditure
UK Statistics Authority,Office for National Statistics,08/06/2020,Exp - Purchase Of Goods/Services - Contractors,Testing,La International,183155,"13,666.72",Information Management Services,SME,Programme Expenditure
UK Statistics Authority,Office for National Statistics,08/06/2020,Exp - Purchase Of Goods/Services - Contractors,Testing,La International,183155,"2,691.22",Information Management Services,SME,Programme Expenditure
UK Statistics Authority,Office for National Statistics,08/06/2020,Exp - Purchase Of Goods/Services - Contractors,Data Architecture,La International,183155,"2,819.38",Information Management Services,SME,Programme Expenditure
UK Statistics Authority,Office for National Statistics,08/06/2020,Exp - Purchase Of Goods/Services - Contractors,Data Architecture,La International,183155,"2,870.64",Information Management Services,SME,Programme Expenditure
UK Statistics Authority,Office for National Statistics,08/06/2020,Exp - Purchase Of Goods/Services - Contractors,Tech Delivery Legacy Sp,La International,183155,"2,819.38",Information Management Services,SME,Programme Expenditure
UK Statistics Authority,Office for National Statistics,08/06/2020,Exp - Purchase Of Goods/Services - Contractors,Tech Delivery Legacy Sp,La International,183155,"25,951.21",Information Management Services,SME,Programme Expenditure
UK Statistics Authority,Office for National Statistics,08/06/2020,Exp - Purchase Of Goods/Services - Contractors,Tech Delivery Data As A Platform,La International,183155,"13,635.54",Information Management Services,SME,Programme Expenditure
UK Statistics Authority,Office for National Statistics,08/06/2020,Exp - Purchase Of Goods/Services - Contractors,IT Applications,La International,183155,"17,836.71",Information Management Services,SME,Programme Expenditure
UK Statistics Authority,Office for National Statistics,08/06/2020,Exp - Purchase Of Goods/Services - Contractors,Digital Delivery,La International,183155,"2,870.64",Information Management Services,SME,Programme Expenditure
UK Statistics Authority,Office for National Statistics,08/06/2020,Exp - Purchase Of Goods/Services - Contractors,Digital Delivery,La International,183155,"8,611.92",Information Management Services,SME,Programme Expenditure
UK Statistics Authority,Office for National Statistics,08/06/2020,Capital Major Works >25K,Property Services,Paramount Office Interiors Ltd,183156,"134,301.74",Buildings Maintenance,SME,Programme Expenditure
UK Statistics Authority,Office for National Statistics,08/06/2020,End User Software And Hardware,IT Operations,CCS MEDIA LTD,183159,"30,222.72",Computers and Peripherals ,Large,Programme Expenditure
UK Statistics Authority,Office for National Statistics,08/06/2020,Surveys,Data Science Campus,Telefonica UK Limited,183169,"87,000.00",Statistical Services,Large,Programme Expenditure
UK Statistics Authority,Office for National Statistics,09/06/2020,Exp - Purchase Of Goods/Services - IT Contractual Services,Tech Delivery Data As A Platform,Kainos,183181,"213,386.19",Information Management Services,Large,Programme Expenditure
UK Statistics Authority,Office for National Statistics,09/06/2020,Hosting,Tech Delivery Data As A Platform,Kainos,183181,"8,673.34",Information Management Services,Large,Programme Expenditure
UK Statistics Authority,Office for National Statistics,09/06/2020,Office Related Goods And Services,Interviewer Management FiF,Flexiform,183192,"25,044.00",Office Furniture,Large,Programme Expenditure
UK Statistics Authority,Office for National Statistics,10/06/2020,Exp - Purchase Of Goods/Services - Incentive Payments,Survey Management,Park Retail Ltd,183195,"42,790.00",Survey Response Incentive Vouchers,Large,Programme Expenditure
UK Statistics Authority,Office for National Statistics,10/06/2020,Exp - Short-Term Contract & Agency Staff - Full Cost,Business Change Support,Concept Information Technology Ltd T/A Concept Resourcing,183196,"4,634.20",Information Management Services,Large,Programme Expenditure
UK Statistics Authority,Office for National Statistics,10/06/2020,Exp - Short-Term Contract & Agency Staff - Full Cost,Business Change Support,Concept Information Technology Ltd T/A Concept Resourcing,183196,"4,634.20",Information Management Services,Large,Programme Expenditure
UK Statistics Authority,Office for National Statistics,10/06/2020,Exp - Short-Term Contract & Agency Staff - Full Cost,International Trade And Transactions,Concept Information Technology Ltd T/A Concept Resourcing,183196,"4,633.66",Information Management Services,Large,Programme Expenditure
UK Statistics Authority,Office for National Statistics,10/06/2020,Exp - Short-Term Contract & Agency Staff - Full Cost,Data Architecture,Concept Information Technology Ltd T/A Concept Resourcing,183196,"3,408.37",Information Management Services,Large,Programme Expenditure
UK Statistics Authority,Office for National Statistics,10/06/2020,Exp - Purchase Of Goods/Services - Contractors,Office Of Chief Data And Information,Concept Information Technology Ltd T/A Concept Resourcing,183196,"12,084.00",Information Management Services,Large,Programme Expenditure
UK Statistics Authority,Office for National Statistics,10/06/2020,"ICT Outsourcing, Maintenance And Support",Digital Publishing,Esri (Uk) Ltd,183198,"50,145.60",Information Management Services,SME,Programme Expenditure
UK Statistics Authority,Office for National Statistics,10/06/2020,Stationery,Lodgecard,Royal Bank of Scotland,183206,"1,084.11",Multiple Procurement Card Purchases  - Stationery ,Large,Programme Expenditure
UK Statistics Authority,Office for National Statistics,10/06/2020,Other Goods And Services,GPC,Royal Bank of Scotland,183206,"24,404.19",Multiple Procurement Card Purchases - other goods/services  ,Large,Programme Expenditure
UK Statistics Authority,Office for National Statistics,10/06/2020,Travel And Subsistence,Car Hire,Royal Bank of Scotland,183206,194.81,Multiple Procurement Card Purchases - Car Hire  ,Large,Programme Expenditure
UK Statistics Authority,Office for National Statistics,10/06/2020,End User Software And Hardware,IT Operations,CCS MEDIA LTD,183209,"34,214.40",Computers and Peripherals ,Large,Programme Expenditure
UK Statistics Authority,Office for National Statistics,10/06/2020,"ICT Outsourcing, Maintenance And Support",Senior Management Team Design,Totalmobile Ltd,183211,"73,998.00",Field Work Management Tool,SME,Programme Expenditure
UK Statistics Authority,Office for National Statistics,10/06/2020,"ICT Outsourcing, Maintenance And Support",Consultancy Management,Totalmobile Ltd,183211,"122,400.00",Field Work Management Tool,SME,Programme Expenditure
UK Statistics Authority,Office for National Statistics,10/06/2020,Exp - Purchase Of Goods/Services - IT Contractual Services,Digital Delivery,Worth Internet Systems,183216,"76,932.00",Information Management Services,Large,Programme Expenditure
UK Statistics Authority,Office for National Statistics,11/06/2020,Exp - Purchase Of Goods/Services - Contractors,Testing,Certes Computing Ltd,183322,"13,834.80",Information Management Services,SME,Programme Expenditure
UK Statistics Authority,Office for National Statistics,11/06/2020,Exp - Purchase Of Goods/Services - Contractors,Testing,Certes Computing Ltd,183322,"9,735.60",Information Management Services,SME,Programme Expenditure
UK Statistics Authority,Office for National Statistics,11/06/2020,Exp - Purchase Of Goods/Services - Contractors,Tech Delivery Data As A Platform,Certes Computing Ltd,183322,"26,228.59",Information Management Services,SME,Programme Expenditure
UK Statistics Authority,Office for National Statistics,11/06/2020,Exp - Purchase Of Goods/Services - Contractors,IT Applications,Certes Computing Ltd,183322,"16,204.79",Information Management Services,SME,Programme Expenditure
UK Statistics Authority,Office for National Statistics,11/06/2020,Exp - Purchase Of Goods/Services - Contractors,Digital Delivery,Certes Computing Ltd,183322,"15,118.49",Information Management Services,SME,Programme Expenditure
UK Statistics Authority,Office for National Statistics,11/06/2020,End User Software And Hardware,IT Operations,Computacenter (Uk) Limited,183323,"38,274.00",Software Licenses,Large,Programme Expenditure
UK Statistics Authority,Office for National Statistics,11/06/2020,Exp - Purchase Of Goods/Services - Other Facilities Costs,Ask Business Services,BaxterStorey,183326,"32,054.40",On Site Facilities,Large,Programme Expenditure
UK Statistics Authority,Office for National Statistics,11/06/2020,EXP - PURCHASE OF GOODS/SERVICES -  NON IT CONTRACTUAL PAYMENTS,Data Collection Service,Good Things Foundation,183327,"130,040.00",Census Assisted Digital Services,SME,Programme Expenditure
UK Statistics Authority,Office for National Statistics,11/06/2020,Exp - Purchase Of Goods/Services - Contractors,Business Architecture,Parity Resources Limited,183329,"9,868.32",Information Management Services,Large,Programme Expenditure
UK Statistics Authority,Office for National Statistics,11/06/2020,Exp - Purchase Of Goods/Services - Contractors,Programme Delivery,Parity Resources Limited,183329,"15,507.36",Information Management Services,Large,Programme Expenditure
UK Statistics Authority,Office for National Statistics,11/06/2020,Exp - Short-Term Contract & Agency Staff - Full Cost,Strategy And Engagement,Parity Resources Limited,183329,800.98,Information Management Services,Large,Programme Expenditure
UK Statistics Authority,Office for National Statistics,11/06/2020,Exp - Purchase Of Goods/Services - Contractors,Analysis Microdata And Engagement,Parity Resources Limited,183329,"1,281.60",Information Management Services,Large,Programme Expenditure
UK Statistics Authority,Office for National Statistics,11/06/2020,Exp - Short-Term Contract & Agency Staff - Full Cost,Business Architecture Transformation And Statistical Strategy,Parity Resources Limited,183329,439.56,Information Management Services,Large,Programme Expenditure
UK Statistics Authority,Office for National Statistics,11/06/2020,Exp - Short-Term Contract & Agency Staff - Full Cost,Data Architecture,Parity Resources Limited,183329,594,Information Management Services,Large,Programme Expenditure
UK Statistics Authority,Office for National Statistics,11/06/2020,Exp - Purchase Of Goods/Services - Contractors,Tech Delivery Legacy Sp,Parity Resources Limited,183329,"2,306.88",Information Management Services,Large,Programme Expenditure
UK Statistics Authority,Office for National Statistics,11/06/2020,Exp - Purchase Of Goods/Services - Contractors,Tech Delivery Legacy Sp,Parity Resources Limited,183329,"10,957.68",Information Management Services,Large,Programme Expenditure
UK Statistics Authority,Office for National Statistics,11/06/2020,Exp - Purchase Of Goods/Services - Contractors,IT Applications,Parity Resources Limited,183329,"1,845.60",Information Management Services,Large,Programme Expenditure
UK Statistics Authority,Office for National Statistics,11/06/2020,Exp - Short-Term Contract & Agency Staff - Full Cost,Digital Delivery,Parity Resources Limited,183329,552.24,Information Management Services,Large,Programme Expenditure
UK Statistics Authority,Office for National Statistics,11/06/2020,Exp - Purchase Of Goods/Services - Contractors,Data Science Campus,Parity Resources Limited,183329,"12,676.80",Information Management Services,Large,Programme Expenditure
UK Statistics Authority,Office for National Statistics,11/06/2020,Exp - Short-Term Contract & Agency Staff - Full Cost,Labour Market,Parity Resources Limited,183329,586.08,Information Management Services,Large,Programme Expenditure
UK Statistics Authority,Office for National Statistics,11/06/2020,Exp - Short-Term Contract & Agency Staff - Full Cost,Labour Market,Parity Resources Limited,183329,584.1,Information Management Services,Large,Programme Expenditure
UK Statistics Authority,Office for National Statistics,11/06/2020,Exp - Purchase Of Goods/Services - Contractors,Business Architecture,LA FOSSE ASSOCIATES LIMITED,183330,"40,350.00",Information Management Services,Large,Programme Expenditure
UK Statistics Authority,Office for National Statistics,11/06/2020,Exp - Purchase Of Goods/Services - Contractors,Business Architecture,LA FOSSE ASSOCIATES LIMITED,183330,"47,010.00",Information Management Services,Large,Programme Expenditure
UK Statistics Authority,Office for National Statistics,11/06/2020,Exp - Purchase Of Goods/Services - Contractors,Business Architecture,LA FOSSE ASSOCIATES LIMITED,183330,"26,220.00",Information Management Services,Large,Programme Expenditure
UK Statistics Authority,Office for National Statistics,11/06/2020,Exp - Purchase Of Goods/Services - Contractors,Programme Delivery,LA FOSSE ASSOCIATES LIMITED,183330,"16,560.00",Information Management Services,Large,Programme Expenditure
UK Statistics Authority,Office for National Statistics,11/06/2020,Exp - Purchase Of Goods/Services - Contractors,Tech Delivery Legacy Sp,LA FOSSE ASSOCIATES LIMITED,183330,"16,560.00",Information Management Services,Large,Programme Expenditure
UK Statistics Authority,Office for National Statistics,11/06/2020,Exp - Purchase Of Goods/Services - Contractors,Digital Delivery,LA FOSSE ASSOCIATES LIMITED,183330,"16,559.72",Information Management Services,Large,Programme Expenditure
UK Statistics Authority,Office for National Statistics,11/06/2020,Exp - Purchase Of Goods/Services - Contractors,Digital Delivery,LA FOSSE ASSOCIATES LIMITED,183330,"14,940.00",Information Management Services,Large,Programme Expenditure
UK Statistics Authority,Office for National Statistics,12/06/2020,"ICT Outsourcing, Maintenance And Support",IT Operations,Esri (Uk) Ltd,183412,"252,000.00",Information Management Services,SME,Programme Expenditure
UK Statistics Authority,Office for National Statistics,12/06/2020,Exp - Purchase Of Goods/Services - Other ICT Costs Software,Finance,Scc,183413,"154,286.88",DST Infrastructure Preparation,Large,Programme Expenditure
UK Statistics Authority,Office for National Statistics,12/06/2020,Exp - Purchase Of Goods/Services - Contractors,Programme Delivery,Certes Computing Ltd,183415,"14,730.95",Information Management Services,SME,Programme Expenditure
UK Statistics Authority,Office for National Statistics,12/06/2020,Exp - Purchase Of Goods/Services - Contractors,Programme Delivery,Certes Computing Ltd,183415,"14,091.00",Information Management Services,SME,Programme Expenditure
UK Statistics Authority,Office for National Statistics,12/06/2020,Exp - Purchase Of Goods/Services - Contractors,Tech Delivery Legacy Sp,Certes Computing Ltd,183415,"9,146.42",Information Management Services,SME,Programme Expenditure
UK Statistics Authority,Office for National Statistics,12/06/2020,Exp - Purchase Of Goods/Services - Contractors,Tech Delivery Data As A Platform,Certes Computing Ltd,183415,"17,677.80",Information Management Services,SME,Programme Expenditure
UK Statistics Authority,Office for National Statistics,12/06/2020,Exp - Purchase Of Goods/Services - Contractors,Digital Delivery,Certes Computing Ltd,183415,"13,994.58",Information Management Services,SME,Programme Expenditure
UK Statistics Authority,Office for National Statistics,12/06/2020,Exp - Purchase Of Goods/Services - Contractors,Digital Delivery,Certes Computing Ltd,183415,"13,629.84",Information Management Services,SME,Programme Expenditure
UK Statistics Authority,Office for National Statistics,12/06/2020,Exp - Purchase Of Goods/Services - Contractors,Digital Delivery,Certes Computing Ltd,183415,"15,500.23",Information Management Services,SME,Programme Expenditure
UK Statistics Authority,Office for National Statistics,12/06/2020,Exp - Purchase Of Goods/Services - Contractors,Testing,La International,183416,"2,819.38",Information Management Services,SME,Programme Expenditure
UK Statistics Authority,Office for National Statistics,12/06/2020,Exp - Purchase Of Goods/Services - Contractors,Testing,La International,183416,"1,281.54",Information Management Services,SME,Programme Expenditure
UK Statistics Authority,Office for National Statistics,12/06/2020,Exp - Purchase Of Goods/Services - Contractors,Programme Delivery,La International,183416,"3,366.90",Information Management Services,SME,Programme Expenditure
UK Statistics Authority,Office for National Statistics,12/06/2020,Exp - Purchase Of Goods/Services - Contractors,Tech Delivery SRS,La International,183416,"3,588.30",Information Management Services,SME,Programme Expenditure
UK Statistics Authority,Office for National Statistics,12/06/2020,Exp - Purchase Of Goods/Services - Contractors,Tech Delivery Data As A Platform,La International,183416,"2,563.10",Information Management Services,SME,Programme Expenditure
UK Statistics Authority,Office for National Statistics,12/06/2020,Exp - Purchase Of Goods/Services - Contractors,Digital Delivery,La International,183416,"12,559.18",Information Management Services,SME,Programme Expenditure
UK Statistics Authority,Office for National Statistics,12/06/2020,Exp - Purchase Of Goods/Services - Contractors,Digital Delivery,La International,183416,"8,650.48",Information Management Services,SME,Programme Expenditure
UK Statistics Authority,Office for National Statistics,12/06/2020,Exp - Purchase Of Goods/Services - Contractors,Digital Delivery,La International,183416,"13,840.63",Information Management Services,SME,Programme Expenditure
UK Statistics Authority,Office for National Statistics,12/06/2020,Exp - Purchase Of Goods/Services - Contractors,Testing,Malikshaw Interim & Executive,183418,"13,680.00",Information Management Services,SME,Programme Expenditure
UK Statistics Authority,Office for National Statistics,12/06/2020,Exp - Purchase Of Goods/Services - Contractors,Digital Delivery,Malikshaw Interim & Executive,183418,"13,680.00",Information Management Services,SME,Programme Expenditure
UK Statistics Authority,Office for National Statistics,12/06/2020,Exp - Purchase Of Goods/Services - Contractors,Testing,Parity Resources Limited,183421,"16,560.00",Information Management Services,Large,Programme Expenditure
UK Statistics Authority,Office for National Statistics,12/06/2020,Exp - Purchase Of Goods/Services - Contractors,Programme Delivery,Parity Resources Limited,183421,"14,520.00",Information Management Services,Large,Programme Expenditure
UK Statistics Authority,Office for National Statistics,12/06/2020,Exp - Purchase Of Goods/Services - Contractors,Security Advisory,Parity Resources Limited,183421,"16,507.01",Information Management Services,Large,Programme Expenditure
UK Statistics Authority,Office for National Statistics,12/06/2020,Exp - Purchase Of Goods/Services - Contractors,IT Applications,Parity Resources Limited,183421,"29,034.65",Information Management Services,Large,Programme Expenditure
UK Statistics Authority,Office for National Statistics,12/06/2020,Exp - Purchase Of Goods/Services - Contractors,Digital Delivery,Parity Resources Limited,183421,"33,014.02",Information Management Services,Large,Programme Expenditure
UK Statistics Authority,Office for National Statistics,12/06/2020,Exp - Purchase Of Goods/Services - Contractors,Digital Delivery,Parity Resources Limited,183421,"16,507.01",Information Management Services,Large,Programme Expenditure
UK Statistics Authority,Office for National Statistics,12/06/2020,Exp - Purchase Of Goods/Services - Contractors,Digital Delivery,Parity Resources Limited,183421,"16,507.01",Information Management Services,Large,Programme Expenditure
UK Statistics Authority,Office for National Statistics,12/06/2020,Exp - Purchase Of Goods/Services - IT Contractual Services,Digital Delivery,Parity Resources Limited,183421,"13,264.56",Information Management Services,Large,Programme Expenditure
UK Statistics Authority,Office for National Statistics,12/06/2020,Exp - Purchase Of Goods/Services - Contractors,Data As A Service,Parity Resources Limited,183421,"15,789.31",Information Management Services,Large,Programme Expenditure
UK Statistics Authority,Office for National Statistics,15/06/2020,Exp - Purchase Of Goods/Services - IT Contractual Services,Digital Delivery,Xma Limited,183523,"255,107.54",Leasing of Devices,Large,Programme Expenditure
UK Statistics Authority,Office for National Statistics,15/06/2020,Telecoms,Digital Delivery,Xma Limited,183523,"13,364.40",Leasing of Devices,Large,Programme Expenditure
UK Statistics Authority,Office for National Statistics,15/06/2020,"ICT Outsourcing, Maintenance And Support",IT Operations,Softcat,183527,"33,594.00",Information Management Services,SME,Programme Expenditure
UK Statistics Authority,Office for National Statistics,15/06/2020,Other Professional Services,International Trade And Transactions,HM Revenue & Customs,183528,"48,468.55",Statistical Services,Large,Programme Expenditure
UK Statistics Authority,Office for National Statistics,15/06/2020,Exp - Purchase Of Goods/Services - Contractors,Testing,Certes Computing Ltd,183529,"15,352.64",Information Management Services,SME,Programme Expenditure
UK Statistics Authority,Office for National Statistics,15/06/2020,Exp - Purchase Of Goods/Services - Contractors,Security Advisory,Certes Computing Ltd,183529,"19,151.09",Information Management Services,SME,Programme Expenditure
UK Statistics Authority,Office for National Statistics,15/06/2020,Exp - Purchase Of Goods/Services - Contractors,Data Architecture,Certes Computing Ltd,183529,"19,368.86",Information Management Services,SME,Programme Expenditure
UK Statistics Authority,Office for National Statistics,15/06/2020,Exp - Purchase Of Goods/Services - Contractors,Strategy And Architecture,Certes Computing Ltd,183529,"17,677.80",Information Management Services,SME,Programme Expenditure
UK Statistics Authority,Office for National Statistics,15/06/2020,Exp - Purchase Of Goods/Services - Contractors,Tech Delivery Legacy Sp,Certes Computing Ltd,183529,"8,967.00",Information Management Services,SME,Programme Expenditure
UK Statistics Authority,Office for National Statistics,15/06/2020,Exp - Purchase Of Goods/Services - Contractors,Tech Delivery Legacy Sp,Certes Computing Ltd,183529,"16,558.34",Information Management Services,SME,Programme Expenditure
UK Statistics Authority,Office for National Statistics,15/06/2020,Exp - Purchase Of Goods/Services - Contractors,Tech Delivery Legacy Sp,Certes Computing Ltd,183529,"32,026.48",Information Management Services,SME,Programme Expenditure
UK Statistics Authority,Office for National Statistics,15/06/2020,Exp - Purchase Of Goods/Services - Contractors,Testing,La International,183530,"17,083.38",Information Management Services,SME,Programme Expenditure
UK Statistics Authority,Office for National Statistics,15/06/2020,Exp - Purchase Of Goods/Services - Contractors,Testing,La International,183530,"7,913.47",Information Management Services,SME,Programme Expenditure
UK Statistics Authority,Office for National Statistics,15/06/2020,Exp - Purchase Of Goods/Services - Contractors,Programme Delivery,La International,183530,"2,693.52",Information Management Services,SME,Programme Expenditure
UK Statistics Authority,Office for National Statistics,15/06/2020,Exp - Purchase Of Goods/Services - Contractors,Security Advisory,La International,183530,"6,151.39",Information Management Services,SME,Programme Expenditure
UK Statistics Authority,Office for National Statistics,15/06/2020,Exp - Purchase Of Goods/Services - Contractors,IT Applications,La International,183530,"2,896.50",Information Management Services,SME,Programme Expenditure
UK Statistics Authority,Office for National Statistics,15/06/2020,Exp - Purchase Of Goods/Services - Contractors,Social Survey Transformation Titchfield,La International,183530,"4,485.43",Information Management Services,SME,Programme Expenditure
UK Statistics Authority,Office for National Statistics,15/06/2020,"ICT Outsourcing, Maintenance And Support",IT Operations,CTS (Cloud Technology Solutions Ltd),183535,"52,073.12",DST Infrastructure Preparation,Large,Programme Expenditure
UK Statistics Authority,Office for National Statistics,15/06/2020,EXP - PURCHASE OF GOODS/SERVICES -  NON IT CONTRACTUAL PAYMENTS,Data Collection Service,HH Associates Ltd,183536,"30,000.00",Census Print and Post,SME,Programme Expenditure
UK Statistics Authority,Office for National Statistics,15/06/2020,EXP - PURCHASE OF GOODS/SERVICES -  NON IT CONTRACTUAL PAYMENTS,Census CCS Data Collection,Adecco UK Limited,183537,"306,000.00",Census People Services ,SME,Programme Expenditure
UK Statistics Authority,Office for National Statistics,15/06/2020,Exp - Purchase Of Goods And Services Consultants,Consultancy Management,Bloom Procurement Services Ltd,183541,"319,893.59",Consultancy,Large,Programme Expenditure
UK Statistics Authority,Office for National Statistics,15/06/2020,Exp - Purchase Of Goods/Services - Contractors,Digital Publishing,Methods Business & Digital Technology Ltd,183542,"30,870.00",Information Management Services,Large,Programme Expenditure
UK Statistics Authority,Office for National Statistics,15/06/2020,"ICT Outsourcing, Maintenance And Support",Digital Publishing,Methods Business & Digital Technology Ltd,183542,"18,480.00",Information Management Services,Large,Programme Expenditure
UK Statistics Authority,Office for National Statistics,15/06/2020,Exp - Purchase Of Goods/Services - IT Contractual Services,DST Reapportioning,Methods Business & Digital Technology Ltd,183542,"51,561.00",Information Management Services,Large,Programme Expenditure
UK Statistics Authority,Office for National Statistics,16/06/2020,Exp - Purchase Of Goods/Services - IT Contractual Services,DST Reapportioning,E Synergy Solutions,183575,"159,348.00",Information Management Services,SME,Programme Expenditure
UK Statistics Authority,Office for National Statistics,16/06/2020,Exp - Purchase Of Goods And Services Consultants,Data Architecture,University of Essex,183579,"48,739.68",Statistical Services,Large,Programme Expenditure
UK Statistics Authority,Office for National Statistics,16/06/2020,Hosting,IT Operations,CTS (Cloud Technology Solutions Ltd),183580,"57,294.22",DST Infrastructure Preparation,Large,Programme Expenditure
UK Statistics Authority,Office for National Statistics,16/06/2020,Office Related Goods And Services,Business Analysis & Soc Survey,Flexiform,183582,"67,188.00",Office Furniture,Large,Programme Expenditure
UK Statistics Authority,Office for National Statistics,17/06/2020,Exp - Purchase Of Goods/Services - IT Contractual Services,Tech Delivery Legacy Sp,Ibm United Kingdom Ltd,183587,"57,295.32",Information Management Services,Large,Programme Expenditure
UK Statistics Authority,Office for National Statistics,17/06/2020,Exp - Purchase Of Goods/Services - IT Contractual Services,Tech Delivery Legacy Sp,Ibm United Kingdom Ltd,183589,"42,504.22",Information Management Services,Large,Programme Expenditure
UK Statistics Authority,Office for National Statistics,17/06/2020,Accommodation & Building Management,Interview Management IPS,Heathrow Airport,183591,"40,350.84",Rental Charges,Large,Programme Expenditure
UK Statistics Authority,Office for National Statistics,17/06/2020,Exp - Purchase Of Goods/Services - Contractors,Programme Delivery,La International,183595,"3,366.90",Information Management Services,SME,Programme Expenditure
UK Statistics Authority,Office for National Statistics,17/06/2020,Exp - Purchase Of Goods/Services - Contractors,Sustainability And Inequalities,La International,183595,"3,788.28",Information Management Services,SME,Programme Expenditure
UK Statistics Authority,Office for National Statistics,17/06/2020,Exp - Purchase Of Goods/Services - Contractors,Data Architecture,La International,183595,"3,524.22",Information Management Services,SME,Programme Expenditure
UK Statistics Authority,Office for National Statistics,17/06/2020,Exp - Purchase Of Goods/Services - Contractors,Data Architecture,La International,183595,"3,524.22",Information Management Services,SME,Programme Expenditure
UK Statistics Authority,Office for National Statistics,17/06/2020,Exp - Purchase Of Goods/Services - Contractors,Data Architecture,La International,183595,"3,588.30",Information Management Services,SME,Programme Expenditure
UK Statistics Authority,Office for National Statistics,17/06/2020,Exp - Purchase Of Goods/Services - Contractors,Data Architecture,La International,183595,"3,588.30",Information Management Services,SME,Programme Expenditure
UK Statistics Authority,Office for National Statistics,17/06/2020,Exp - Purchase Of Goods/Services - Contractors,IT Applications,La International,183595,"11,822.29",Information Management Services,SME,Programme Expenditure
UK Statistics Authority,Office for National Statistics,17/06/2020,Exp - Purchase Of Goods/Services - Contractors,Social Survey Transformation Titchfield,La International,183595,"3,203.88",Information Management Services,SME,Programme Expenditure
UK Statistics Authority,Office for National Statistics,17/06/2020,End User Software And Hardware,IT Operations,Computacenter (Uk) Limited,183597,"13,392.00",Software Licenses,Large,Programme Expenditure
UK Statistics Authority,Office for National Statistics,17/06/2020,End User Software And Hardware,IT Operations,Computacenter (Uk) Limited,183597,"30,016.38",Software Licenses,Large,Programme Expenditure
UK Statistics Authority,Office for National Statistics,17/06/2020,Surveys,Crime Statistics,Kantar UK Ltd,183600,"38,876.00",Statistical Services,Large,Programme Expenditure
UK Statistics Authority,Office for National Statistics,17/06/2020,Surveys,Prices Division,Kantar UK Ltd,183600,"16,600.00",Statistical Services,Large,Programme Expenditure
UK Statistics Authority,Office for National Statistics,17/06/2020,Exp - Short-Term Contract & Agency Staff - Full Cost,Beyond 2021 Research And Design,Parity Resources Limited,183601,"1,036.02",Information Management Services,Large,Programme Expenditure
UK Statistics Authority,Office for National Statistics,17/06/2020,Exp - Short-Term Contract & Agency Staff - Full Cost,International Trade And Transactions,Parity Resources Limited,183601,"3,943.99",Information Management Services,Large,Programme Expenditure
UK Statistics Authority,Office for National Statistics,17/06/2020,Exp - Purchase Of Goods/Services - Contractors,International Trade And Transactions,Parity Resources Limited,183601,"16,422.00",Information Management Services,Large,Programme Expenditure
UK Statistics Authority,Office for National Statistics,17/06/2020,Exp - Purchase Of Goods/Services - Contractors,Social Survey Transformation Titchfield,Parity Resources Limited,183601,"16,220.52",Information Management Services,Large,Programme Expenditure
UK Statistics Authority,Office for National Statistics,17/06/2020,Exp - Purchase Of Goods/Services - Contractors,Business Architecture,LA FOSSE ASSOCIATES LIMITED,183602,"11,880.00",Information Management Services,Large,Programme Expenditure
UK Statistics Authority,Office for National Statistics,17/06/2020,Exp - Purchase Of Goods/Services - Contractors,Business Architecture,LA FOSSE ASSOCIATES LIMITED,183602,"15,660.00",Information Management Services,Large,Programme Expenditure
UK Statistics Authority,Office for National Statistics,17/06/2020,Exp - Purchase Of Goods/Services - IT Contractual Services,IT Applications,Diegesis Limited,183605,"157,050.00",Information Management Services,Large,Programme Expenditure
UK Statistics Authority,Office for National Statistics,17/06/2020,Exp - Purchase Of Goods/Services - Contractor Travel,IT Applications,Diegesis Limited,183605,"3,909.53",Information Management Services,Large,Programme Expenditure
UK Statistics Authority,Office for National Statistics,18/06/2020,Telecoms,IT Operations,Bt Global Services,183712,"25,919.27",Telephony Charges,Large,Programme Expenditure
UK Statistics Authority,Office for National Statistics,18/06/2020,IT (Owned) At Cost - Additions,IT Operations,Centerprise International Ltd,183715,"485,082.00",Computers and Peripherals ,Large,Programme Expenditure
UK Statistics Authority,Office for National Statistics,18/06/2020,Exp - Purchase Of Goods/Services - Contractors,Digital Publishing,Methods Business & Digital Technology Ltd,183719,"31,920.00",Information Management Services,Large,Programme Expenditure
UK Statistics Authority,Office for National Statistics,18/06/2020,Exp - Purchase Of Goods And Services Consultants,Commercial Services,Future Purchasing Consulting Limited,183723,"38,520.00",Consultancy,Large,Programme Expenditure
UK Statistics Authority,Office for National Statistics,19/06/2020,FM Contract Payments,Mitie Payments,Vinci Construction UK Limited,183728,"277,315.61",Facilities Mangement Services,Large,Programme Expenditure
UK Statistics Authority,Office for National Statistics,22/06/2020,Exp - Purchase Of Goods/Services - Incentive Payments,Interviewer Support,P & Mm Ltd,183808,"220,273.20",Survey Response Incentive Vouchers,Large,Programme Expenditure
UK Statistics Authority,Office for National Statistics,22/06/2020,"ICT Outsourcing, Maintenance And Support",Digital Publishing,Parity Resources Limited,183813,"16,560.00",Information Management Services,Large,Programme Expenditure
UK Statistics Authority,Office for National Statistics,22/06/2020,Exp - Purchase Of Goods/Services - Contractors,Commercial Services,Parity Resources Limited,183813,"19,159.92",Information Management Services,Large,Programme Expenditure
UK Statistics Authority,Office for National Statistics,22/06/2020,Exp - Purchase Of Goods/Services - Contractors,Digital Delivery,Parity Resources Limited,183813,"6,536.16",Information Management Services,Large,Programme Expenditure
UK Statistics Authority,Office for National Statistics,23/06/2020,Telecoms,Interviewer Management FiF,EE Limited,183889,"32,850.17",Telephony Charges,Large,Programme Expenditure
UK Statistics Authority,Office for National Statistics,23/06/2020,Telecoms,Interview Management IPS,EE Limited,183889,"12,108.85",Telephony Charges,Large,Programme Expenditure
UK Statistics Authority,Office for National Statistics,23/06/2020,Exp - Short-Term Contract & Agency Staff - Full Cost,Stakeholder Engagement And Comms,Concept Information Technology Ltd T/A Concept Resourcing,183890,"3,592.85",Information Management Services,Large,Programme Expenditure
UK Statistics Authority,Office for National Statistics,23/06/2020,Exp - Short-Term Contract & Agency Staff - Full Cost,Business Change Support,Concept Information Technology Ltd T/A Concept Resourcing,183890,"8,195.61",Information Management Services,Large,Programme Expenditure
UK Statistics Authority,Office for National Statistics,23/06/2020,Exp - Short-Term Contract & Agency Staff - Full Cost,Business Change Support,Concept Information Technology Ltd T/A Concept Resourcing,183890,"4,633.66",Information Management Services,Large,Programme Expenditure
UK Statistics Authority,Office for National Statistics,23/06/2020,Exp - Short-Term Contract & Agency Staff - Full Cost,Business Change Support,Concept Information Technology Ltd T/A Concept Resourcing,183890,"15,819.50",Information Management Services,Large,Programme Expenditure
UK Statistics Authority,Office for National Statistics,23/06/2020,Exp - Purchase Of Goods/Services - Contractors,Business Change Support,Concept Information Technology Ltd T/A Concept Resourcing,183890,"4,634.20",Information Management Services,Large,Programme Expenditure
UK Statistics Authority,Office for National Statistics,23/06/2020,Exp - Purchase Of Goods/Services - Contractors,Business Change Support,Concept Information Technology Ltd T/A Concept Resourcing,183890,"8,936.24",Information Management Services,Large,Programme Expenditure
UK Statistics Authority,Office for National Statistics,23/06/2020,Exp - Short-Term Contract & Agency Staff - Full Cost,International Trade And Transactions,Concept Information Technology Ltd T/A Concept Resourcing,183890,"3,822.82",Information Management Services,Large,Programme Expenditure
UK Statistics Authority,Office for National Statistics,23/06/2020,Exp - Short-Term Contract & Agency Staff - Full Cost,International Trade And Transactions,Concept Information Technology Ltd T/A Concept Resourcing,183890,805.94,Information Management Services,Large,Programme Expenditure
UK Statistics Authority,Office for National Statistics,23/06/2020,Exp - Purchase Of Goods/Services - Contractors,International Trade And Transactions,Concept Information Technology Ltd T/A Concept Resourcing,183890,"9,066.91",Information Management Services,Large,Programme Expenditure
UK Statistics Authority,Office for National Statistics,23/06/2020,Exp - Short-Term Contract & Agency Staff - Full Cost,Business Architecture Transformation And Statistical Strategy,Concept Information Technology Ltd T/A Concept Resourcing,183890,"5,012.94",Information Management Services,Large,Programme Expenditure
UK Statistics Authority,Office for National Statistics,23/06/2020,Exp - Short-Term Contract & Agency Staff - Full Cost,Business Architecture Transformation And Statistical Strategy,Concept Information Technology Ltd T/A Concept Resourcing,183890,"4,772.80",Information Management Services,Large,Programme Expenditure
UK Statistics Authority,Office for National Statistics,23/06/2020,Exp - Short-Term Contract & Agency Staff - Full Cost,Finance,Concept Information Technology Ltd T/A Concept Resourcing,183890,"3,224.00",Information Management Services,Large,Programme Expenditure
UK Statistics Authority,Office for National Statistics,23/06/2020,Exp - Short-Term Contract & Agency Staff - Full Cost,Data Architecture,Concept Information Technology Ltd T/A Concept Resourcing,183890,"9,417.89",Information Management Services,Large,Programme Expenditure
UK Statistics Authority,Office for National Statistics,23/06/2020,Exp - Short-Term Contract & Agency Staff - Full Cost,Prices Division,Concept Information Technology Ltd T/A Concept Resourcing,183890,"9,262.42",Information Management Services,Large,Programme Expenditure
UK Statistics Authority,Office for National Statistics,23/06/2020,Exp - Purchase Of Goods/Services - Contractors,Testing,La International,183892,"17,083.38",Information Management Services,SME,Programme Expenditure
UK Statistics Authority,Office for National Statistics,23/06/2020,Exp - Purchase Of Goods/Services - Contractors,Testing,La International,183892,"9,451.32",Information Management Services,SME,Programme Expenditure
UK Statistics Authority,Office for National Statistics,23/06/2020,Exp - Short-Term Contract & Agency Staff - Full Cost,Researcher Support And Data Access ,La International,183892,"4,152.07",Information Management Services,SME,Programme Expenditure
UK Statistics Authority,Office for National Statistics,23/06/2020,Exp - Purchase Of Goods/Services - Contractors,Data Architecture,La International,183892,"9,162.97",Information Management Services,SME,Programme Expenditure
UK Statistics Authority,Office for National Statistics,23/06/2020,Exp - Purchase Of Goods/Services - Contractors,Data Architecture,La International,183892,"3,524.22",Information Management Services,SME,Programme Expenditure
UK Statistics Authority,Office for National Statistics,23/06/2020,Exp - Purchase Of Goods/Services - Contractors,Data Architecture,La International,183892,"13,456.12",Information Management Services,SME,Programme Expenditure
UK Statistics Authority,Office for National Statistics,23/06/2020,Exp - Purchase Of Goods/Services - Contractors,Data Architecture,La International,183892,"3,588.30",Information Management Services,SME,Programme Expenditure
UK Statistics Authority,Office for National Statistics,23/06/2020,Exp - Purchase Of Goods/Services - Contractors,Tech Delivery SRS,La International,183892,"1,435.32",Information Management Services,SME,Programme Expenditure
UK Statistics Authority,Office for National Statistics,23/06/2020,Exp - Purchase Of Goods/Services - Contractors,IT Applications,La International,183892,"15,007.14",Information Management Services,SME,Programme Expenditure
UK Statistics Authority,Office for National Statistics,23/06/2020,Exp - Purchase Of Goods/Services - Contractors,Digital Delivery,La International,183892,"5,745.60",Information Management Services,SME,Programme Expenditure
UK Statistics Authority,Office for National Statistics,23/06/2020,Exp - Purchase Of Goods/Services - Contractors,Social Survey Transformation Titchfield,La International,183892,"3,203.88",Information Management Services,SME,Programme Expenditure
UK Statistics Authority,Office for National Statistics,23/06/2020,Exp - Purchase Of Goods/Services - Contractors,Operations,Parity Resources Limited,183899,"10,098.00",Information Management Services,Large,Programme Expenditure
UK Statistics Authority,Office for National Statistics,23/06/2020,Exp - Short-Term Contract & Agency Staff - Full Cost,International Trade And Transactions,Parity Resources Limited,183899,"4,437.84",Information Management Services,Large,Programme Expenditure
UK Statistics Authority,Office for National Statistics,23/06/2020,Exp - Purchase Of Goods/Services - Contractors,International Trade And Transactions,Parity Resources Limited,183899,"14,738.40",Information Management Services,Large,Programme Expenditure
UK Statistics Authority,Office for National Statistics,23/06/2020,Exp - Purchase Of Goods/Services - Contractors,International Trade And Transactions,Parity Resources Limited,183899,"10,316.88",Information Management Services,Large,Programme Expenditure
UK Statistics Authority,Office for National Statistics,23/06/2020,Exp - Purchase Of Goods/Services - Contractors,Commercial Services,Parity Resources Limited,183899,"14,001.48",Information Management Services,Large,Programme Expenditure
UK Statistics Authority,Office for National Statistics,23/06/2020,Exp - Short-Term Contract & Agency Staff - Full Cost,Recruitment ,Parity Resources Limited,183899,"2,168.10",Information Management Services,Large,Programme Expenditure
UK Statistics Authority,Office for National Statistics,24/06/2020,Exp - Purchase Of Goods/Services - Contractors,Commercial Services,Certes Computing Ltd,183906,"13,770.24",Information Management Services,SME,Programme Expenditure
UK Statistics Authority,Office for National Statistics,24/06/2020,Exp - Purchase Of Goods/Services - Contractors,Tech Delivery Legacy Sp,Certes Computing Ltd,183906,"6,405.00",Information Management Services,SME,Programme Expenditure
UK Statistics Authority,Office for National Statistics,24/06/2020,Exp - Purchase Of Goods/Services - Contractors,Tech Delivery Legacy Sp,Certes Computing Ltd,183906,"6,533.16",Information Management Services,SME,Programme Expenditure
UK Statistics Authority,Office for National Statistics,24/06/2020,Exp - Purchase Of Goods/Services - Contractors,Digital Delivery,Certes Computing Ltd,183906,"17,280.00",Information Management Services,SME,Programme Expenditure
UK Statistics Authority,Office for National Statistics,24/06/2020,Exp - Purchase Of Goods/Services - Contractors,Digital Delivery,Certes Computing Ltd,183906,"47,356.80",Information Management Services,SME,Programme Expenditure
UK Statistics Authority,Office for National Statistics,24/06/2020,Exp - Purchase Of Goods/Services - Contractors,Digital Delivery,Certes Computing Ltd,183906,"28,886.80",Information Management Services,SME,Programme Expenditure
UK Statistics Authority,Office for National Statistics,24/06/2020,Exp - Purchase Of Goods/Services - Contractors,Digital Delivery,Certes Computing Ltd,183906,720,Information Management Services,SME,Programme Expenditure
UK Statistics Authority,Office for National Statistics,24/06/2020,EXP - PURCHASE OF GOODS/SERVICES -  NON IT CONTRACTUAL PAYMENTS,Data Collection Service,Serco Ltd,183910,"32,140.57",Census Contact Centre,Large,Programme Expenditure
UK Statistics Authority,Office for National Statistics,24/06/2020,EXP - PURCHASE OF GOODS/SERVICES -  NON IT CONTRACTUAL PAYMENTS,Data Collection Service,Good Things Foundation,183913,"130,040.00",Census Assisted Digital Services,SME,Programme Expenditure
UK Statistics Authority,Office for National Statistics,25/06/2020,Hosting,IT Operations,Crown Hosting Data Centres Limited,184014,"87,920.28",Information Management Services,SME,Programme Expenditure
UK Statistics Authority,Office for National Statistics,25/06/2020,Surveys,Health Analysis And Life Events,Bt Global Services,184019,194.57,Telephony Charges,Large,Programme Expenditure
UK Statistics Authority,Office for National Statistics,25/06/2020,Telecoms,IT Operations,Bt Global Services,184019,"49,780.39",Telephony Charges,Large,Programme Expenditure
UK Statistics Authority,Office for National Statistics,25/06/2020,Exp - Purchase Of Goods/Services - Contractors,DST Legacy,Malikshaw Interim & Executive,184031,"11,561.83",Information Management Services,SME,Programme Expenditure
UK Statistics Authority,Office for National Statistics,25/06/2020,Exp - Purchase Of Goods/Services - Contractors,Testing,Malikshaw Interim & Executive,184031,"8,400.00",Information Management Services,SME,Programme Expenditure
UK Statistics Authority,Office for National Statistics,25/06/2020,Exp - Short-Term Contract & Agency Staff - Full Cost,Knowledge And Information Management,Malikshaw Interim & Executive,184031,"5,694.30",Information Management Services,SME,Programme Expenditure
UK Statistics Authority,Office for National Statistics,25/06/2020,Exp - Short-Term Contract & Agency Staff - Full Cost,Strategy And Engagement,Parity Resources Limited,184035,"1,001.22",Information Management Services,Large,Programme Expenditure
UK Statistics Authority,Office for National Statistics,25/06/2020,Exp - Purchase Of Goods/Services - Contractors,Researcher Support And Data Access ,Parity Resources Limited,184035,"3,008.22",Information Management Services,Large,Programme Expenditure
UK Statistics Authority,Office for National Statistics,25/06/2020,Exp - Short-Term Contract & Agency Staff - Full Cost,Recruitment ,Parity Resources Limited,184035,"3,882.24",Information Management Services,Large,Programme Expenditure
UK Statistics Authority,Office for National Statistics,25/06/2020,Exp - Short-Term Contract & Agency Staff - Full Cost,ONS And GSS Careers,Parity Resources Limited,184035,628.7,Information Management Services,Large,Programme Expenditure
UK Statistics Authority,Office for National Statistics,25/06/2020,Exp - Short-Term Contract & Agency Staff - Full Cost,Data Architecture,Parity Resources Limited,184035,"1,346.40",Information Management Services,Large,Programme Expenditure
UK Statistics Authority,Office for National Statistics,25/06/2020,Exp - Purchase Of Goods/Services - Contractors,Data Architecture,Parity Resources Limited,184035,"3,592.56",Information Management Services,Large,Programme Expenditure
UK Statistics Authority,Office for National Statistics,25/06/2020,Exp - Purchase Of Goods/Services - Contractors,IT Applications,Parity Resources Limited,184035,"2,307.00",Information Management Services,Large,Programme Expenditure
UK Statistics Authority,Office for National Statistics,25/06/2020,Exp - Short-Term Contract & Agency Staff - Full Cost,Public Sector And Households,Parity Resources Limited,184035,798.28,Information Management Services,Large,Programme Expenditure
UK Statistics Authority,Office for National Statistics,25/06/2020,Exp - Purchase Of Goods/Services - Contractors,Social Survey Transformation Titchfield,Parity Resources Limited,184035,"12,694.32",Information Management Services,Large,Programme Expenditure
UK Statistics Authority,Office for National Statistics,25/06/2020,Exp - Short-Term Contract & Agency Staff - Full Cost,Labour Market,Parity Resources Limited,184035,732.6,Information Management Services,Large,Programme Expenditure
UK Statistics Authority,Office for National Statistics,25/06/2020,Exp - Short-Term Contract & Agency Staff - Full Cost,Labour Market,Parity Resources Limited,184035,732.6,Information Management Services,Large,Programme Expenditure
UK Statistics Authority,Office for National Statistics,04/06/2020,Exp - Purchase Of Goods/Services - Incentive Payments,COVID19 Infection Survey Operations,Sodexo Motivation Solutions U.K. ltd,30002037,"344,875.88",Survey Response Incentive Vouchers,Large,Programme Expenditure
UK Statistics Authority,Office for National Statistics,08/06/2020,"ICT Outsourcing, Maintenance And Support",IT Operations,O'Reilly Media Inc,30002039,"64,431.01",Information Management Services,Large,Programme Expenditure
UK Statistics Authority,Office for National Statistics,09/06/2020,Exp - Purchase Of Goods/Services - Incentive Payments,COVID19 Infection Survey Operations,Sodexo Motivation Solutions U.K. ltd,30002045,"224,839.24",Survey Response Incentive Vouchers,Large,Programme Expenditure
UK Statistics Authority,Office for National Statistics,15/06/2020,Exp - Purchase Of Goods/Services - Incentive Payments,COVID19 Infection Survey Operations,Sodexo Motivation Solutions U.K. ltd,30002053,"414,069.44",Survey Response Incentive Vouchers,Large,Programme Expenditure
UK Statistics Authority,Office for National Statistics,22/06/2020,Exp - Purchase Of Goods/Services - Incentive Payments,COVID19 Infection Survey Operations,Sodexo Motivation Solutions U.K. ltd,30002088,"434,042.96",Survey Response Incentive Vouchers,Large,Programme Expenditure
UK Statistics Authority,Office for National Statistics,29/06/2020,Exp - Purchase Of Goods/Services - Incentive Payments,COVID19 Infection Survey Operations,Sodexo Motivation Solutions U.K. ltd,30002097,"457,337.68",Survey Response Incentive Vouchers,Large,Programme Expenditure
UK Statistics Authority,Office for National Statistics,30/06/2020,EXP - PURCHASE OF GOODS/SERVICES -  NON IT CONTRACTUAL PAYMENTS,Census CCS Data Collection,Adecco UK Limited,30002101,"966,450.00",Census People Services ,SME,Programme Expenditure
,,,,,,Report Total,"10,952,144.54",,,
